[Event "SVK Extraliga 2019-20"]
[Site "Slovakia"]
[Date "2019.11.23"]
[Round "3.1"]
[White "Gazik, Viktor"]
[Black "Balogh, Csaba"]
[Result "0-1"]
[ECO "C67"]
[WhiteElo "2508"]
[BlackElo "2591"]
[Annotator "ChessBase"]
[PlyCount "70"]
[EventDate "2019.10.19"]
[EventType "team-tourn"]
[EventCountry "SVK"]
[SourceTitle "playchess.com"]
[Source "ChessBase"]
[SourceQuality "1"]
[WhiteTeam "Podhajska"]
[BlackTeam "Modra"]
[TimeControl "40/5400+30:1800+30"]

1. e4 {[%emt 0:00:00]} e5 {[%emt 0:00:00]} 2. Nf3 {[%emt 0:00:00]} Nc6 {[%emt 0:00:00]} 3. Bb5 {[%emt 0:00:00]} Nf6 {[%emt 0:01:03]} 4. O-O {[%emt 0:03:45]} Nxe4 {[%emt 0:00:30]} 5. Re1 {[%emt 0:01:47]} Nd6 {[%emt 0:00:12]} 6. Nxe5 {[%emt 0:00:05]} Be7 {[%emt 0:00:06]} 7. Bd3 {[%emt 0:18:53]} Nxe5 {[%emt 0:06:42]} 8. Rxe5 {[%emt 0:00:28]} O-O {[%emt 0:00:06]} 9. Nc3 {[%emt 0:00:20]} c6 {[%emt 0:05:09]} 10. b3 {[%emt 0:11:31]} Ne8 {[%emt 0:03:27]} 11. Bb2 {[%emt 0:11:16]} d5 {[%emt 0:05:09]} 12. Qh5 {[%emt 0:09:28]} Nf6 {[%emt 0:01:38]} 13. Qh4 {[%emt 0:01:11]} Be6 {[%emt 0:10:35]} 14. Rg5 {[%emt 0:08:00]} g6 {[%emt 0:02:35]} 15. Qh6 {[%emt 0:10:40]} Re8 {[%emt 0:27:26]} 16. f4 {[%emt 0:14:17]} Bc5+ {[%emt 0:13:43]} 17. Kf1 {[%emt 0:01:57]} Bf8 {[%emt 0:03:19]} 18. Qh4 {[%emt 0:00:05]} Bg7 {[%emt 0:08:27]} 19. Qg3 {[%emt 0:03:25]} Ne4 {[%emt 0:02:06]} 20. Bxe4 {[%emt 0:00:06]} dxe4 {[%emt 0:00:04]} 21. f5 {[%emt 0:02:40]} h6 {[%emt 0:03:09]} 22. Rh5 {[%emt 0:00:33]} Bd7 {[%emt 0:04:24]} 23. Kg1 {[%emt 0:00:28]} Be5 {[%emt 0:01:06]} 24. Qg4 {[%emt 0:00:11]} Kh7 {[%emt 0:00:10]} 25. Nxe4 {[%emt 0:00:48]} gxh5 {[%emt 0:00:34]} 26. Qxh5 {[%emt 0:00:05]} Bxb2 {[%emt 0:00:43]} 27. Qxf7+ {[%emt 0:00:02]} Kh8 {[%emt 0:00:22]} 28. f6 {[%emt 0:01:10]} Rg8 {[%emt 0:00:22]} 29. Qh5 {[%emt 0:00:30]} Qf8 {[%emt 0:00:22]} 30. Rf1 {[%emt 0:00:05]} Bg4 {[%emt 0:00:38]} 31. Qh4 {[%emt 0:00:06]} Bd4+ {[%emt 0:00:44]} 32. Kh1 {[%emt 0:00:01]} Rg6 {[%emt 0:00:08]} 33. c3 {[%emt 0:01:41]} Re8 {[%emt 0:00:23]} 34. d3 {[%emt 0:00:06]} Rxe4 {[%emt 0:00:15]} 35. dxe4 {[%emt 0:00:05]} Rxf6 {[%emt 0:00:31]} 0-1

[Event "SVK Extraliga 2019-20"]
[Site "Slovakia"]
[Date "2019.11.23"]
[Round "3.1"]
[White "Petenyi, Tamas"]
[Black "Cernousek, Lukas"]
[Result "1/2-1/2"]
[ECO "A36"]
[WhiteElo "2427"]
[BlackElo "2461"]
[Annotator "ChessBase"]
[PlyCount "61"]
[EventDate "2019.10.19"]
[EventType "team-tourn"]
[EventCountry "SVK"]
[SourceTitle "playchess.com"]
[Source "ChessBase"]
[SourceQuality "1"]
[WhiteTeam "Streda"]
[BlackTeam "Dubnica"]
[TimeControl "40/5400+30:1800+30"]

1. c4 {[%emt 0:00:00]} c5 {[%emt 0:00:00]} 2. g3 {[%emt 0:00:12]} g6 {[%emt 0:00:00]} 3. Bg2 {[%emt 0:00:08]} Bg7 {[%emt 0:00:05]} 4. Nc3 {[%emt 0:00:16]} Nc6 {[%emt 0:00:10]} 5. e3 {[%emt 0:00:32]} e6 {[%emt 0:00:06]} 6. Nge2 {[%emt 0:00:15]} Nge7 {[%emt 0:00:06]} 7. O-O {[%emt 0:00:15]} O-O {[%emt 0:00:05]} 8. d4 {[%emt 0:07:29]} cxd4 {[%emt 0:00:09]} 9. exd4 {[%emt 0:00:12]} d5 {[%emt 0:00:10]} 10. cxd5 {[%emt 0:01:52]} Nxd5 {[%emt 0:00:08]} 11. Qb3 {[%emt 0:07:06]} Na5 {[%emt 0:09:21]} 12. Qa3 {[%emt 0:04:03]} Nc4 {[%emt 0:09:27]} 13. Qb3 {[%emt 0:05:51]} Na5 {[%emt 0:02:38]} 14. Qa3 {[%emt 0:02:00]} Nxc3 {[%emt 0:08:58]} 15. Nxc3 {[%emt 0:02:40]} Nc6 {[%emt 0:13:00]} 16. Bxc6 {[%emt 0:10:43]} bxc6 {[%emt 0:00:23]} 17. Be3 {[%emt 0:00:46]} Bxd4 {[%emt 0:11:27]} 18. Bxd4 {[%emt 0:06:21]} Qxd4 {[%emt 0:00:05]} 19. Rad1 {[%emt 0:00:32]} Qc4 {[%emt 0:04:50]} 20. Rfe1 {[%emt 0:02:27]} c5 {[%emt 0:04:46]} 21. Re4 {[%emt 0:12:08]} Qa6 {[%emt 0:00:01]} 22. Qxc5 {[%emt 0:00:26]} Bb7 {[%emt 0:00:11]} 23. Ra4 {[%emt 0:05:47]} Qc6 {[%emt 0:01:35]} 24. Qxc6 {[%emt 0:00:05]} Bxc6 {[%emt 0:00:04]} 25. Ra6 {[%emt 0:01:05]} Rfc8 {[%emt 0:02:21]} 26. f4 {[%emt 0:01:21]} Rab8 {[%emt 0:07:59]} 27. Rd2 {[%emt 0:04:27]} Rc7 {[%emt 0:00:02]} 28. Kf2 {[%emt 0:01:26]} Kf8 {[%emt 0:00:37]} 29. Ke3 {[%emt 0:01:44]} Ke7 {[%emt 0:02:02]} 30. Ra5 {[%emt 0:02:51]} Bd7 {[%emt 0:12:21]} 31. Ke4 1/2-1/2

[Event "SVK Extraliga 2019-20"]
[Site "Slovakia"]
[Date "2019.11.23"]
[Round "3.1"]
[White "Sahidi, Samir"]
[Black "Cvek, Robert"]
[Result "1/2-1/2"]
[ECO "A46"]
[WhiteElo "2374"]
[BlackElo "2514"]
[Annotator "ChessBase"]
[PlyCount "30"]
[EventDate "2019.10.19"]
[EventType "team-tourn"]
[EventCountry "SVK"]
[SourceTitle "playchess.com"]
[Source "ChessBase"]
[SourceQuality "1"]
[WhiteTeam "KSN"]
[BlackTeam "Liptovska"]
[TimeControl "40/5400+30:1800+30"]

1. d4 {[%emt 0:00:04]} Nf6 {[%emt 0:00:00]} 2. Nf3 {[%emt 0:00:34]} e6 {[%emt 0:00:05]} 3. g3 {[%emt 0:02:09]} c5 {[%emt 0:04:54]} 4. Bg2 {[%emt 0:04:37]} d5 {[%emt 0:00:14]} 5. O-O {[%emt 0:02:21]} Nc6 {[%emt 0:00:09]} 6. b3 {[%emt 0:05:23]} Be7 {[%emt 0:02:05]} 7. Bb2 {[%emt 0:02:53]} O-O {[%emt 0:00:21]} 8. Nbd2 {[%emt 0:06:19]} cxd4 {[%emt 0:05:36]} 9. Nxd4 {[%emt 0:01:26]} Nxd4 {[%emt 0:02:10]} 10. Bxd4 {[%emt 0:00:07]} b6 {[%emt 0:06:24]} 11. c4 {[%emt 0:08:44]} Bb7 {[%emt 0:00:08]} 12. Rc1 {[%emt 0:04:55]} Rc8 {[%emt 0:03:55]} 13. cxd5 {[%emt 0:06:50]} Rxc1 {[%emt 0:00:12]} 14. Qxc1 {[%emt 0:00:18]} Bxd5 {[%emt 0:00:15]} 15. Qb2 {[%emt 0:03:24]} Bxg2 {[%emt 0:00:58]} 1/2-1/2

[Event "SVK Extraliga 2019-20"]
[Site "Slovakia"]
[Date "2019.11.23"]
[Round "3.2"]
[White "Michalik, Peter"]
[Black "Mihok, Oliver"]
[Result "1/2-1/2"]
[ECO "B47"]
[WhiteElo "2592"]
[BlackElo "2559"]
[Annotator "ChessBase"]
[PlyCount "52"]
[EventDate "2019.10.19"]
[EventType "team-tourn"]
[EventCountry "SVK"]
[SourceTitle "playchess.com"]
[Source "ChessBase"]
[SourceQuality "1"]
[WhiteTeam "Modra"]
[BlackTeam "Podhajska"]
[TimeControl "40/5400+30:1800+30"]

1. e4 {[%emt 0:00:00]} c5 {[%emt 0:00:00]} 2. Nf3 {[%emt 0:00:00]} e6 {[%emt 0:00:00]} 3. d4 {[%emt 0:00:00]} cxd4 {[%emt 0:00:00]} 4. Nxd4 {[%emt 0:00:00]} Nc6 {[%emt 0:00:01]} 5. Nc3 {[%emt 0:00:04]} Qc7 {[%emt 0:00:04]} 6. Qd3 {[%emt 0:00:39]} Nf6 {[%emt 0:00:43]} 7. Ndb5 {[%emt 0:00:52]} Qb8 {[%emt 0:00:05]} 8. f4 {[%emt 0:00:05]} a6 {[%emt 0:07:11]} 9. Nd4 {[%emt 0:00:07]} d6 {[%emt 0:07:24]} 10. Be3 {[%emt 0:01:01]} Be7 {[%emt 0:02:22]} 11. O-O-O {[%emt 0:04:40]} O-O {[%emt 0:06:05]} 12. Kb1 {[%emt 0:10:26]} Nxd4 {[%emt 0:03:28]} 13. Bxd4 {[%emt 0:04:41]} e5 {[%emt 0:03:31]} 14. Bb6 {[%emt 0:04:17]} exf4 {[%emt 0:01:31]} 15. Be2 {[%emt 0:01:52]} Be6 {[%emt 0:01:49]} 16. Qf3 {[%emt 0:08:15]} Nd7 {[%emt 0:11:10]} 17. Bd4 {[%emt 0:00:08]} Bf6 {[%emt 0:02:40]} 18. Bxf6 {[%emt 0:05:04]} Nxf6 {[%emt 0:00:07]} 19. Qxf4 {[%emt 0:00:08]} Rc8 {[%emt 0:16:42]} 20. Qxd6 {[%emt 0:04:40]} Qxd6 {[%emt 0:02:23]} 21. Rxd6 {[%emt 0:00:14]} Rxc3 {[%emt 0:00:03]} 22. bxc3 {[%emt 0:00:12]} Nxe4 {[%emt 0:00:04]} 23. Rd4 {[%emt 0:04:02]} Nxc3+ {[%emt 0:00:15]} 24. Kb2 {[%emt 0:00:04]} Nxe2 {[%emt 0:01:15]} 25. Re4 {[%emt 0:00:05]} Bxa2 {[%emt 0:00:50]} 26. Rxe2 {[%emt 0:09:02]} Be6 {[%emt 0:02:37]} 1/2-1/2

[Event "SVK Extraliga 2019-20"]
[Site "Slovakia"]
[Date "2019.11.23"]
[Round "3.2"]
[White "Plat, Vojtech"]
[Black "Rigo, Zsolt"]
[Result "1-0"]
[ECO "D38"]
[WhiteElo "2570"]
[BlackElo "2396"]
[Annotator "ChessBase"]
[PlyCount "81"]
[EventDate "2019.10.19"]
[EventType "team-tourn"]
[EventCountry "SVK"]
[SourceTitle "playchess.com"]
[Source "ChessBase"]
[SourceQuality "1"]
[WhiteTeam "Dubnica"]
[BlackTeam "Streda"]
[TimeControl "40/5400+30:1800+30"]

1. d4 {[%emt 0:00:00]} Nf6 {[%emt 0:00:00]} 2. c4 {[%emt 0:00:00]} e6 {[%emt 0:00:00]} 3. Nc3 {[%emt 0:00:12]} Bb4 {[%emt 0:00:23]} 4. Qc2 {[%emt 0:00:04]} d5 {[%emt 0:01:57]} 5. Nf3 {[%emt 0:00:33]} dxc4 {[%emt 0:05:54]} 6. Bg5 {[%emt 0:19:10]} b5 {[%emt 0:17:56]} 7. a4 {[%emt 0:00:08]} c6 {[%emt 0:01:18]} 8. Nd2 {[%emt 0:12:02]} Qb6 {[%emt 0:10:57]} 9. Bxf6 {[%emt 0:04:44]} gxf6 {[%emt 0:00:02]} 10. g3 {[%emt 0:01:30]} Bb7 {[%emt 0:00:59]} 11. Bg2 {[%emt 0:00:55]} Nd7 {[%emt 0:03:08]} 12. O-O {[%emt 0:00:11]} O-O {[%emt 0:03:46]} 13. Qe4 {[%emt 0:04:18]} a6 {[%emt 0:06:23]} 14. Qh4 {[%emt 0:03:36]} Rfd8 {[%emt 0:07:39]} 15. Rfd1 {[%emt 0:02:38]} Bf8 {[%emt 0:05:32]} 16. Qf4 {[%emt 0:06:35]} Bg7 {[%emt 0:09:54]} 17. Nde4 {[%emt 0:01:14]} f5 {[%emt 0:01:30]} 18. Ng5 {[%emt 0:11:44]} Nf8 {[%emt 0:01:41]} 19. e4 {[%emt 0:02:27]} h6 {[%emt 0:06:49]} 20. Nf3 {[%emt 0:01:44]} b4 {[%emt 0:01:28]} 21. a5 {[%emt 0:02:27]} Qa7 {[%emt 0:01:18]} 22. Ne2 {[%emt 0:07:11]} Ng6 {[%emt 0:00:20]} 23. Qc1 {[%emt 0:00:37]} fxe4 {[%emt 0:00:16]} 24. Nd2 {[%emt 0:00:04]} c3 {[%emt 0:02:46]} 25. bxc3 {[%emt 0:00:08]} bxc3 {[%emt 0:00:21]} 26. Nxe4 {[%emt 0:00:07]} c5 {[%emt 0:02:56]} 27. Rb1 {[%emt 0:00:46]} Bxe4 {[%emt 0:02:52]} 28. Bxe4 {[%emt 0:00:09]} cxd4 {[%emt 0:00:29]} 29. Qc2 {[%emt 0:03:06]} Ne5 {[%emt 0:04:59]} 30. Nxd4 {[%emt 0:04:59]} Rac8 {[%emt 0:00:41]} 31. Rb6 {[%emt 0:00:14]} Nc4 {[%emt 0:00:38]} 32. Nc6 {[%emt 0:00:31]} Rxd1+ {[%emt 0:00:07]} 33. Qxd1 {[%emt 0:00:00]} Qc7 {[%emt 0:00:11]} 34. Rxa6 {[%emt 0:00:30]} Nb2 {[%emt 0:01:15]} 35. Qf3 {[%emt 0:02:02]} Qd6 {[%emt 0:00:23]} 36. Ra7 {[%emt 0:01:17]} Rf8 {[%emt 0:00:01]} 37. Bc2 {[%emt 0:00:20]} Kh8 {[%emt 0:00:58]} 38. Ne7 {[%emt 0:03:10]} Qd4 {[%emt 0:00:28]} 39. Ra8 {[%emt 0:00:21]} Qd2 {[%emt 0:00:43]} 40. Rxf8+ {[%emt 0:00:32]} Bxf8 {[%emt 0:00:02]} 41. Qxf7 {[%emt 0:30:11]} 1-0

[Event "SVK Extraliga 2019-20"]
[Site "Slovakia"]
[Date "2019.11.23"]
[Round "3.2"]
[White "Zilka, Stepan"]
[Black "Malinovsky, Karel"]
[Result "1-0"]
[ECO "C20"]
[WhiteElo "2551"]
[BlackElo "2472"]
[Annotator "ChessBase"]
[PlyCount "66"]
[EventDate "2019.10.19"]
[EventType "team-tourn"]
[EventCountry "SVK"]
[SourceTitle "playchess.com"]
[Source "ChessBase"]
[SourceQuality "1"]
[WhiteTeam "Prakovce"]
[BlackTeam "Slovan"]
[TimeControl "40/5400+30:1800+30"]

1. e4 {[%emt 0:01:33]} e5 {[%emt 0:00:00]} 2. Nf3 {[%emt 0:03:47]} Nc6 {[%emt 0:00:00]} 3. d4 {[%emt 0:00:04]} exd4 {[%emt 0:00:03]} 4. Nxd4 {[%emt 0:00:03]} Bc5 {[%emt 0:00:48]} 5. Nxc6 {[%emt 0:00:32]} bxc6 {[%emt 0:00:41]} 6. Bd3 {[%emt 0:04:41]} d6 {[%emt 0:01:23]} 7. Nc3 {[%emt 0:01:42]} Qh4 {[%emt 0:04:23]} 8. Qf3 {[%emt 0:05:23]} Nh6 {[%emt 0:02:22]} 9. Be3 {[%emt 0:08:42]} Bxe3 {[%emt 0:04:52]} 10. Qxe3 {[%emt 0:01:25]} Ng4 {[%emt 0:00:24]} 11. Qg3 {[%emt 0:00:47]} Qf6 {[%emt 0:10:35]} 12. f4 {[%emt 0:14:17]} g5 {[%emt 0:17:48]} 13. fxg5 {[%emt 0:00:01]} Qxg5 {[%emt 0:04:53]} 14. h3 {[%emt 0:00:48]} Qe5 {[%emt 0:00:26]} 15. Qf3 {[%emt 0:00:17]} Nf6 {[%emt 0:08:53]} 16. O-O {[%emt 0:01:43]} Ke7 {[%emt 0:01:58]} 17. Rae1 {[%emt 0:02:54]} Be6 {[%emt 0:00:56]} 18. Nd5+ {[%emt 0:01:42]} cxd5 {[%emt 0:14:21]} 19. exd5 {[%emt 0:00:04]} Qd4+ {[%emt 0:00:54]} 20. Kh1 {[%emt 0:00:52]} Raf8 {[%emt 0:01:01]} 21. c3 {[%emt 0:07:13]} Qxd5 {[%emt 0:05:11]} 22. Qxf6+ {[%emt 0:00:07]} Kd7 {[%emt 0:00:06]} 23. Be4 {[%emt 0:08:44]} Qxa2 {[%emt 0:03:25]} 24. b4 {[%emt 0:05:29]} Rhg8 {[%emt 0:03:31]} 25. Rf2 {[%emt 0:03:43]} Qc4 {[%emt 0:06:22]} 26. Bxh7 {[%emt 0:00:41]} Bd5 {[%emt 0:01:34]} 27. Re7+ {[%emt 0:05:58]} Kc8 {[%emt 0:01:43]} 28. Bxg8 {[%emt 0:00:58]} Rxg8 {[%emt 0:00:05]} 29. Kh2 {[%emt 0:05:25]} Qd3 {[%emt 0:02:18]} 30. g4 {[%emt 0:05:02]} Qd1 {[%emt 0:02:44]} 31. Rf1 {[%emt 0:01:47]} Qd2+ {[%emt 0:00:59]} 32. Qf2 {[%emt 0:00:36]} Qh6 {[%emt 0:00:42]} 33. Qxa7 {[%emt 0:02:30]} Bb7 1-0

[Event "SVK Extraliga 2019-20"]
[Site "Slovakia"]
[Date "2019.11.23"]
[Round "3.2"]
[White "Mazur, Stefan"]
[Black "Macko, Miroslav"]
[Result "1-0"]
[ECO "C47"]
[WhiteElo "2457"]
[BlackElo "2303"]
[Annotator "ChessBase"]
[PlyCount "53"]
[EventDate "2019.10.19"]
[EventType "team-tourn"]
[EventCountry "SVK"]
[SourceTitle "playchess.com"]
[Source "ChessBase"]
[SourceQuality "1"]
[WhiteTeam "Liptovska"]
[BlackTeam "KSN"]
[TimeControl "40/5400+30:1800+30"]

1. e4 {[%emt 0:00:00]} e5 {[%emt 0:00:00]} 2. Nf3 {[%emt 0:00:00]} Nf6 {[%emt 0:00:05]} 3. Nc3 {[%emt 0:00:07]} Nc6 {[%emt 0:00:28]} 4. Bb5 {[%emt 0:00:08]} Bb4 {[%emt 0:06:13]} 5. O-O {[%emt 0:00:21]} O-O {[%emt 0:00:48]} 6. d3 {[%emt 0:00:22]} d6 {[%emt 0:02:37]} 7. Ne2 {[%emt 0:00:19]} Bg4 {[%emt 0:03:46]} 8. Bxc6 {[%emt 0:15:55]} bxc6 {[%emt 0:00:47]} 9. Ng3 {[%emt 0:00:08]} Nh5 {[%emt 0:07:16]} 10. h3 {[%emt 0:03:00]} Nxg3 {[%emt 0:07:31]} 11. fxg3 {[%emt 0:00:09]} Be6 {[%emt 0:00:37]} 12. Be3 {[%emt 0:09:43]} f6 {[%emt 0:03:48]} 13. c3 {[%emt 0:00:32]} Bc5 {[%emt 0:16:43]} 14. Bxc5 {[%emt 0:00:28]} dxc5 {[%emt 0:00:04]} 15. d4 {[%emt 0:02:24]} cxd4 {[%emt 0:07:14]} 16. cxd4 {[%emt 0:00:08]} Qb8 {[%emt 0:01:11]} 17. Rc1 {[%emt 0:20:03]} Qb6 {[%emt 0:09:19]} 18. Qa4 {[%emt 0:01:48]} Bd7 {[%emt 0:06:00]} 19. Kh2 {[%emt 0:03:26]} exd4 {[%emt 0:05:46]} 20. e5 {[%emt 0:11:36]} Kh8 {[%emt 0:01:12]} 21. exf6 {[%emt 0:06:01]} Rxf6 {[%emt 0:00:49]} 22. Ne5 {[%emt 0:01:10]} Rxf1 {[%emt 0:02:39]} 23. Rxf1 {[%emt 0:01:01]} Be6 {[%emt 0:00:26]} 24. Qa3 {[%emt 0:04:28]} c5 {[%emt 0:04:05]} 25. Qf3 {[%emt 0:00:18]} Rg8 {[%emt 0:00:33]} 26. Qe4 {[%emt 0:05:58]} Qd6 {[%emt 0:03:08]} 27. Ng6+ {[%emt 0:00:36]} 1-0

[Event "SVK Extraliga 2019-20"]
[Site "Slovakia"]
[Date "2019.11.23"]
[Round "3.3"]
[White "Bagi, Mate"]
[Black "Motuz, Karol"]
[Result "1-0"]
[ECO "C11"]
[WhiteElo "2461"]
[BlackElo "2365"]
[Annotator "ChessBase"]
[PlyCount "102"]
[EventDate "2019.10.19"]
[EventType "team-tourn"]
[EventCountry "SVK"]
[SourceTitle "playchess.com"]
[Source "ChessBase"]
[SourceQuality "1"]
[WhiteTeam "Streda"]
[BlackTeam "Dubnica"]
[TimeControl "40/5400+30:1800+30"]

1. e4 {[%emt 0:00:00]} e6 {[%emt 0:00:00]} 2. d4 {[%emt 0:00:20]} d5 {[%emt 0:00:00]} 3. Nc3 {[%emt 0:01:12]} Nf6 {[%emt 0:00:10]} 4. e5 {[%emt 0:00:13]} Nfd7 {[%emt 0:00:05]} 5. f4 {[%emt 0:00:18]} c5 {[%emt 0:00:04]} 6. Nf3 {[%emt 0:00:12]} Nc6 {[%emt 0:00:04]} 7. Be3 {[%emt 0:00:25]} Be7 {[%emt 0:00:10]} 8. Qd2 {[%emt 0:03:21]} a6 {[%emt 0:01:31]} 9. Bd3 {[%emt 0:10:28]} O-O {[%emt 0:09:43]} 10. dxc5 {[%emt 0:31:23]} Nxc5 {[%emt 0:03:28]} 11. O-O-O {[%emt 0:04:11]} b5 {[%emt 0:06:28]} 12. Bxc5 {[%emt 0:05:38]} Bxc5 {[%emt 0:00:29]} 13. Bxh7+ {[%emt 0:01:05]} Kh8 {[%emt 0:37:57]} 14. Bd3 {[%emt 0:02:45]} f6 {[%emt 0:13:52]} 15. Nh4 {[%emt 0:07:35]} Kg8 {[%emt 0:03:35]} 16. Ng6 {[%emt 0:01:55]} fxe5 {[%emt 0:05:30]} 17. Nxf8 {[%emt 0:04:04]} Qxf8 {[%emt 0:00:53]} 18. fxe5 {[%emt 0:00:42]} Nxe5 {[%emt 0:01:07]} 19. Qg5 {[%emt 0:03:24]} Qf6 {[%emt 0:02:46]} 20. Qh5 {[%emt 0:01:15]} g6 {[%emt 0:02:13]} 21. Qe2 {[%emt 0:01:29]} Bd7 {[%emt 0:02:16]} 22. Rdf1 {[%emt 0:03:24]} Qg5+ {[%emt 0:02:51]} 23. Kb1 {[%emt 0:00:06]} b4 {[%emt 0:01:07]} 24. h4 {[%emt 0:01:24]} Qe3 {[%emt 0:02:32]} 25. Nd1 {[%emt 0:01:44]} Qxe2 {[%emt 0:00:32]} 26. Bxe2 {[%emt 0:00:05]} a5 {[%emt 0:01:23]} 27. Nf2 {[%emt 0:00:53]} Kg7 {[%emt 0:00:35]} 28. Ng4 {[%emt 0:01:09]} Nxg4 {[%emt 0:01:23]} 29. Bxg4 {[%emt 0:00:05]} Re8 {[%emt 0:00:52]} 30. h5 {[%emt 0:02:25]} Re7 {[%emt 0:00:48]} 31. Rh3 {[%emt 0:01:57]} Bb5 {[%emt 0:00:27]} 32. Rd1 {[%emt 0:00:27]} Bc6 {[%emt 0:00:29]} 33. Bf3 {[%emt 0:01:35]} g5 {[%emt 0:00:32]} 34. Rhh1 {[%emt 0:01:33]} Kh6 {[%emt 0:00:35]} 35. Rhe1 {[%emt 0:01:32]} Bf2 {[%emt 0:00:29]} 36. Re2 {[%emt 0:00:33]} Bg3 {[%emt 0:00:32]} 37. Bxd5 {[%emt 0:03:11]} Bxd5 {[%emt 0:00:26]} 38. Rxd5 {[%emt 0:00:04]} Kxh5 {[%emt 0:00:29]} 39. Rxa5 {[%emt 0:00:34]} e5 {[%emt 0:00:36]} 40. a4 {[%emt 0:02:17]} e4 {[%emt 0:00:29]} 41. Rb5 {[%emt 0:31:56]} e3 {[%emt 0:03:54]} 42. Rxb4 {[%emt 0:00:00]} Bf2 {[%emt 0:00:51]} 43. Rd4 {[%emt 0:00:00]} g4 {[%emt 0:01:27]} 44. Rf4 {[%emt 0:00:00]} Kh4 {[%emt 0:04:19]} 45. Rfxf2 {[%emt 0:00:00]} exf2 {[%emt 0:00:18]} 46. Rxf2 {[%emt 0:00:00]} Kg3 {[%emt 0:03:01]} 47. Rd2 {[%emt 0:00:00]} Kh2 {[%emt 0:01:55]} 48. b4 {[%emt 0:00:00]} g3 {[%emt 0:00:18]} 49. a5 {[%emt 0:00:00]} Re1+ {[%emt 0:04:20]} 50. Kb2 {[%emt 0:00:00]} Rd1 {[%emt 0:00:31]} 51. Rxd1 {[%emt 0:00:00]} Kxg2 {[%emt 0:00:24]} 1-0

[Event "SVK Extraliga 2019-20"]
[Site "Slovakia"]
[Date "2019.11.23"]
[Round "3.3"]
[White "Pacher, Milan"]
[Black "Manik, Mikulas"]
[Result "1/2-1/2"]
[ECO "E62"]
[WhiteElo "2442"]
[BlackElo "2377"]
[Annotator "NA"]
[PlyCount "44"]
[EventDate "2019.10.19"]
[EventType "team-tourn"]
[EventCountry "SVK"]
[SourceTitle "playchess.com"]
[Source "ChessBase"]
[SourceQuality "1"]
[WhiteTeam "Slovan"]
[BlackTeam "Prakovce"]
[TimeControl "40/5400+30:1800+30"]

1. d4 {[%emt 0:03:07]} Nf6 {[%emt 0:00:00]} 2. c4 {[%emt 0:00:07]} g6 {[%emt 0:00:00]} 3. g3 {[%emt 0:00:54]} Bg7 {[%emt 0:00:01]} 4. Bg2 {[%emt 0:00:06]} O-O {[%emt 0:00:11]} 5. Nf3 {[%emt 0:00:15]} d6 {[%emt 0:00:35]} 6. O-O {[%emt 0:01:15]} Nc6 {[%emt 0:03:41]} 7. Nc3 {[%emt 0:02:35]} e5 {[%emt 0:04:04]} 8. dxe5 {[%emt 0:06:21]} Nxe5 {[%emt 0:04:14]} 9. Nxe5 {[%emt 0:01:19]} dxe5 {[%emt 0:00:07]} 10. Qxd8 {[%emt 0:00:41]} Rxd8 {[%emt 0:00:03]} 11. Bg5 {[%emt 0:00:27]} Rd4 {[%emt 0:04:10]} 12. Nd5 {[%emt 0:02:48]} Nxd5 {[%emt 0:00:44]} 13. cxd5 {[%emt 0:00:04]} e4 {[%emt 0:04:35]} 14. Rfd1 {[%emt 0:02:23]} Bf5 {[%emt 0:04:45]} 15. h3 {[%emt 0:08:02]} h5 {[%emt 0:02:17]} 16. Bf4 {[%emt 0:00:30]} c6 {[%emt 0:04:00]} 17. dxc6 {[%emt 0:02:28]} bxc6 {[%emt 0:00:14]} 18. Rxd4 {[%emt 0:00:31]} Bxd4 {[%emt 0:00:08]} 19. Rc1 {[%emt 0:00:30]} Bxb2 {[%emt 0:02:31]} 20. Rxc6 {[%emt 0:00:21]} Rc8 {[%emt 0:00:16]} 21. Bxe4 {[%emt 0:00:40]} Rxc6 {[%emt 0:00:11]} 22. Bxc6 {[%emt 0:00:06]} Bxh3 {[%emt 0:00:05]} 1/2-1/2

[Event "SVK Extraliga 2019-20"]
[Site "Slovakia"]
[Date "2019.11.23"]
[Round "3.3"]
[White "Horvath, Jozsef"]
[Black "Vykouk, Jan"]
[Result "1/2-1/2"]
[ECO "A38"]
[WhiteElo "2437"]
[BlackElo "2433"]
[Annotator "NA"]
[PlyCount "86"]
[EventDate "2019.10.19"]
[EventType "team-tourn"]
[EventCountry "SVK"]
[SourceTitle "playchess.com"]
[Source "ChessBase"]
[SourceQuality "1"]
[WhiteTeam "Podhajska"]
[BlackTeam "Modra"]
[TimeControl "40/5400+30:1800+30"]

1. Nf3 {[%emt 0:00:00]} Nf6 {[%emt 0:00:00]} 2. g3 {[%emt 0:00:06]} g6 {[%emt 0:01:29]} 3. b3 {[%emt 0:00:31]} Bg7 {[%emt 0:00:46]} 4. Bb2 {[%emt 0:00:06]} c5 {[%emt 0:02:10]} 5. c4 {[%emt 0:00:54]} d6 {[%emt 0:00:44]} 6. Bg2 {[%emt 0:00:14]} e5 {[%emt 0:00:53]} 7. d3 {[%emt 0:02:10]} Nc6 {[%emt 0:00:16]} 8. Nc3 {[%emt 0:00:26]} O-O {[%emt 0:00:14]} 9. O-O {[%emt 0:00:16]} Be6 {[%emt 0:05:02]} 10. a3 {[%emt 0:05:08]} h6 {[%emt 0:00:39]} 11. Nd2 {[%emt 0:01:15]} d5 {[%emt 0:01:49]} 12. cxd5 {[%emt 0:00:11]} Nxd5 {[%emt 0:00:06]} 13. Rc1 {[%emt 0:00:10]} b6 {[%emt 0:02:17]} 14. b4 {[%emt 0:02:28]} Nxc3 {[%emt 0:09:39]} 15. Rxc3 {[%emt 0:09:46]} Bd5 {[%emt 0:10:49]} 16. bxc5 {[%emt 0:11:19]} Bxg2 {[%emt 0:04:59]} 17. Kxg2 {[%emt 0:00:16]} Nd4 {[%emt 0:03:00]} 18. e3 {[%emt 0:25:39]} Qd5+ {[%emt 0:09:24]} 19. Kg1 {[%emt 0:01:14]} Qa2 {[%emt 0:01:39]} 20. Nc4 {[%emt 0:22:09]} b5 {[%emt 0:01:02]} 21. exd4 {[%emt 0:00:33]} bxc4 {[%emt 0:00:05]} 22. Qa1 {[%emt 0:01:42]} Qxa1 {[%emt 0:02:25]} 23. Bxa1 {[%emt 0:00:02]} cxd3 {[%emt 0:00:21]} 24. Rxd3 {[%emt 0:00:24]} Rfd8 {[%emt 0:03:14]} 25. Rfd1 {[%emt 0:04:47]} e4 {[%emt 0:12:57]} 26. Rb3 {[%emt 0:00:45]} Rac8 {[%emt 0:00:32]} 27. Kg2 {[%emt 0:02:33]} Rxc5 {[%emt 0:20:04]} 28. dxc5 {[%emt 0:00:09]} Rxd1 {[%emt 0:00:04]} 29. c6 {[%emt 0:00:36]} Rc1 {[%emt 0:00:07]} 30. Bc3 {[%emt 0:04:13]} Bxc3 {[%emt 0:00:07]} 31. Rb8+ {[%emt 0:00:25]} Kg7 {[%emt 0:00:06]} 32. c7 {[%emt 0:00:10]} Bb2 {[%emt 0:00:27]} 33. c8=Q {[%emt 0:00:15]} Rxc8 {[%emt 0:00:06]} 34. Rxc8 {[%emt 0:00:03]} Bxa3 {[%emt 0:00:06]} 35. Rc4 {[%emt 0:01:01]} f5 {[%emt 0:00:17]} 36. Rc7+ {[%emt 0:00:10]} Kf6 {[%emt 0:00:08]} 37. Rxa7 {[%emt 0:00:05]} Bc5 {[%emt 0:00:06]} 38. Ra6+ {[%emt 0:00:12]} Kf7 {[%emt 0:01:03]} 39. Rc6 {[%emt 0:00:41]} Bd4 {[%emt 0:01:36]} 40. h3 {[%emt 0:00:51]} h5 {[%emt 0:01:22]} 41. g4 {[%emt 0:30:40]} hxg4 {[%emt 0:30:05]} 42. hxg4 {[%emt 0:00:05]} Be5 {[%emt 0:01:12]} 43. Ra6 {[%emt 0:01:51]} Bf4 {[%emt 0:02:54]} 1/2-1/2